bitfinex-derivatives/quotes_BTCF0:USTF0_20250417
["timestamp","ask_amount","ask_price","bid_price","bid_amount"]
[1744908633269,0.1178068,84900.0,84899.0,8.008e-05]
[1744908633458,0.1678068,84900.0,84899.0,8.008e-05]
[1744908634763,0.1678068,84900.0,84899.0,0.00016008]
[1744908634961,0.1678068,84900.0,84899.0,8.008e-05]
[1744908635160,0.1678068,84900.0,84899.0,0.00016008]
[1744908635462,0.5286068,84900.0,84899.0,0.00016008]
[1744908635669,0.5286068,84900.0,84899.0,0.11796828]
[1744908635858,0.4108,84900.0,84899.0,0.11796828]
[1744908636061,0.05,84900.0,84899.0,0.1178082]
[1744908636267,0.05008,84900.0,84899.0,0.2741082]
[1744908636458,0.16849743,84900.0,84899.0,0.1178082]
[1744908636658,0.16849743,84900.0,84899.0,0.1178882]
[1744908637269,0.16849743,84900.0,84899.0,0.11796828]
[1744908637966,0.16849743,84900.0,84899.0,0.19806828]
[1744908638557,0.05069063,84900.0,84899.0,0.19806828]
[1744908638759,0.16849743,84900.0,84899.0,0.27986828]
[1744908639164,0.16849743,84900.0,84899.0,0.11796828]
[1744908639668,0.16849743,84900.0,84899.0,0.19726828]
[1744908640266,0.16849743,84900.0,84899.0,0.11796828]
[1744908640768,0.16849743,84900.0,84899.0,0.27466828]
[1744908640965,0.16849743,84900.0,84899.0,0.27458828]
[1744908640966,0.05008,84900.0,84899.0,0.27458828]
[1744908641166,0.05,84900.0,84899.0,0.2745082]
[1744908641564,0.05061063,84900.0,84899.0,0.27458828]
[1744908642271,0.16841743,84900.0,84899.0,0.27458828]
[1744908643563,0.24691743,84900.0,84899.0,0.11788828]
[1744908645170,0.24691743,84900.0,84899.0,0.19208828]
[1744908645472,0.24691743,84900.0,84899.0,0.11788828]
[1744908646169,0.2463068,84900.0,84899.0,0.1178082]
[1744908646567,0.24691743,84900.0,84899.0,0.11788828]
[1744908647673,0.24691743,84900.0,84899.0,0.19578828]
[1744908647872,0.32591743,84900.0,84899.0,0.19578828]
[1744908648683,0.32591743,84900.0,84899.0,0.27668828]
[1744908649866,0.32591743,84900.0,84899.0,0.07798008]
[1744908650072,0.32591743,84900.0,84899.0,8.008e-05]
[1744908650380,0.68671743,84900.0,84899.0,0.00016008]
[1744908650682,0.1178179,84892.0,84891.0,0.00017663]
[1744908650876,0.1278179,84892.0,84891.0,0.00017663]
[1744908651078,0.3611179,84892.0,84891.0,0.00017663]
[1744908651475,0.3611179,84892.0,84891.0,0.11799593]
[1744908652074,0.3611179,84892.0,84891.0,0.19619593]
[1744908652281,0.3611179,84892.0,84891.0,0.07837663]
[1744908652982,0.3611179,84892.0,84891.0,0.19619593]
[1744908653182,0.3611179,84892.0,84891.0,0.00017663]
[1744908653482,0.1178207,84890.0,84889.0,0.000108]
[1744908653682,0.1178304,84883.0,84882.0,0.1960318]
[1744908653880,0.4886304,84883.0,84882.0,0.0782]
[1744908654084,0.6430304,84883.0,84882.0,0.1960318]
[1744908655482,0.6430304,84883.0,84882.0,0.2697318]
[1744908656387,0.65178634,84883.0,84882.0,0.2697318]
[1744908656576,0.29098634,84883.0,84882.0,0.1960318]
[1744908656777,0.1767491,84882.0,84881.0,0.1178323]
[1744908656982,0.1967491,84882.0,84881.0,0.1178323]
[1744908657183,0.7149491,84882.0,84881.0,0.1930323]
[1744908657683,0.7149491,84882.0,84881.0,0.2667323]
[1744908658983,0.6382491,84882.0,84881.0,0.2667323]
[1744908659987,0.1967491,84882.0,84881.0,0.2667323]
[1744908660377,0.0789159,84882.0,84881.0,0.2667323]
[1744908661288,0.02,84882.0,84881.0,0.6275323]
[1744908661487,0.02,84882.0,84881.0,0.7010323]
[1744908661679,0.2728163,84889.0,84888.0,0.1178234]
[1744908661981,0.2828163,84889.0,84888.0,0.1178234]
[1744908662189,0.1867363,84889.0,84888.0,0.2750234]
[1744908662378,0.01,84889.0,84888.0,0.6358234]
[1744908662577,0.00017663,84891.0,84890.0,0.1178207]
[1744908662778,0.00017663,84891.0,84890.0,0.2750207]
[1744908664791,0.11841743,84900.0,84899.0,0.1178082]
[1744908664981,0.1178082,84899.0,84898.0,0.1565]
[1744908665184,0.1178082,84899.0,84898.0,0.2743096]
[1744908666290,0.0589034,84901.0,84900.0,0.1178068]
[1744908666488,0.0689034,84901.0,84900.0,0.1178068]
[1744908667389,0.06951403,84901.0,84900.0,0.1178068]
[1744908667879,0.43031403,84901.0,84900.0,0.1178068]
[1744908668483,0.43031403,84901.0,84900.0,0.2777068]
[1744908669480,0.37141063,84901.0,84900.0,0.2777068]
[1744908671083,0.3708,84901.0,84900.0,0.2777068]
[1744908671487,0.37141063,84901.0,84900.0,0.3513068]
[1744908671688,0.37149063,84901.0,84900.0,0.3513068]
[1744908673191,0.48929603,84901.0,84900.0,0.3513068]
[1744908673395,0.48929603,84901.0,84900.0,0.36700253]
[1744908673586,0.48929603,84901.0,84900.0,0.3513068]
[1744908674298,0.48929603,84901.0,84900.0,0.36699494]
[1744908674505,0.12849603,84901.0,84900.0,0.36699494]
[1744908674694,0.01069063,84901.0,84900.0,0.36699494]
[1744908676493,0.00069063,84901.0,84900.0,0.36699494]
[1744908677801,0.00061063,84901.0,84900.0,0.36699494]
[1744908678093,0.00069063,84901.0,84900.0,0.29339494]
[1744908680685,0.11849603,84901.0,84900.0,0.2777068]
[1744908681094,0.28289603,84901.0,84900.0,0.2777068]
[1744908685194,0.16509063,84901.0,84900.0,0.2777068]
[1744908685394,0.28289603,84901.0,84900.0,0.2777068]
[1744908688501,0.28289603,84901.0,84900.0,0.29322889]
[1744908689489,0.28289603,84901.0,84900.0,0.01552209]
[1744908689694,0.1178193,84891.0,84890.0,0.00017663]
[1744908689899,0.1378193,84891.0,84890.0,0.00025663]
[1744908690105,0.1378193,84891.0,84890.0,0.00017663]
[1744908690303,0.2912193,84891.0,84890.0,0.00017663]
[1744908690490,0.2912193,84891.0,84890.0,0.00025663]
[1744908690999,0.2912193,84891.0,84890.0,0.00017663]
[1744908691200,0.2912193,84891.0,84890.0,0.00025663]
[1744908692095,0.117829,84884.0,84883.0,0.000108]
[1744908692306,0.1178318,84882.0,84881.0,0.17833624]
[1744908692501,0.3978318,84882.0,84881.0,0.17833624]
[1744908692990,0.5485318,84882.0,84881.0,0.17833624]
[1744908693504,0.56046755,84882.0,84881.0,0.17833624]
[1744908693890,0.56046755,84882.0,84881.0,0.17841624]
[1744908694097,0.56046755,84882.0,84881.0,8e-05]
[1744908694794,0.1178429,84875.0,84873.0,0.05909863]
[1744908694993,0.4458229,84874.0,84873.0,0.17694293]
[1744908695199,0.4658229,84874.0,84873.0,0.17694293]
[1744908696706,0.4658229,84874.0,84873.0,0.00017663]
[1744908697003,0.4658229,84874.0,84873.0,0.11802093]
[1744908698011,0.117854,84866.0,84852.0,0.7753]
[1744908698306,0.117854,84866.0,84861.0,0.3608]
[1744908698307,0.1178595,84862.0,84861.0,0.3608]
[1744908698697,0.1278595,84862.0,84861.0,0.3608]
[1744908698897,0.1278595,84862.0,84861.0,0.36088]
[1744908699997,0.13677564,84862.0,84861.0,8e-05]
[1744908702514,0.29097564,84862.0,84861.0,8e-05]
[1744908703313,0.65177564,84862.0,84861.0,8e-05]
[1744908704203,0.65177564,84862.0,84849.0,0.0050678]
[1744908704204,0.53391614,84862.0,84849.0,0.0050678]
[1744908704410,0.4786706,84854.0,84849.0,0.0050678]
[1744908704610,0.2335506,84854.0,84851.0,0.000108]
[1744908704802,0.60598137,84854.0,84850.0,0.08]
[1744908705002,0.60598137,84854.0,84853.0,0.00025674]
[1744908705204,0.75898137,84854.0,84853.0,0.00025674]
[1744908710906,0.75898137,84854.0,84840.0,0.0589447]
[1744908710907,0.0589387,84850.0,84843.0,0.000108]
[1744908711108,0.1178873,84842.0,84841.0,0.0758]
[1744908711817,0.1928873,84842.0,84841.0,0.0758]
[1744908712020,0.2689873,84842.0,84841.0,0.0758]
[1744908712518,0.1928873,84842.0,84841.0,0.0758]
[1744908713011,0.1928873,84842.0,84841.0,0.07588]
[1744908714105,0.164,84842.0,84833.0,0.00017674]
[1744908714306,0.1178984,84834.0,84833.0,0.00017674]
[1744908714509,0.2235784,84834.0,84833.0,0.00017674]
[1744908714710,0.3810784,84834.0,84833.0,0.00017674]
[1744908715008,0.3810784,84834.0,84833.0,0.00025674]
[1744908720310,0.1179109,84825.0,84824.0,0.0771]
[1744908720511,0.1179123,84824.0,84823.0,0.00506935]
[1744908720712,0.5953123,84824.0,84823.0,0.00506935]
[1744908721518,0.3453123,84824.0,84823.0,0.00506935]
[1744908721717,0.3553123,84824.0,84823.0,0.00506935]
[1744908722426,0.05896,84819.0,84811.0,0.00026572]
[1744908722723,0.1179374,84806.0,84805.0,0.3608]
[1744908722910,0.1179374,84806.0,84805.0,0.4787388]
[1744908723113,0.1179374,84806.0,84805.0,0.3608]
[1744908723114,0.1926374,84806.0,84805.0,0.3608]
[1744908723313,0.1926374,84806.0,84805.0,0.4788188]
[1744908723714,0.1926374,84806.0,84805.0,0.6346188]
[1744908724727,0.058965,84812.0,84809.0,0.1179304]
[1744908724913,0.1324652,84811.0,84810.0,0.2680314]
[1744908725115,0.15127391,84811.0,84810.0,0.1501]
[1744908725315,0.22757391,84811.0,84810.0,0.1501]
[1744908726328,0.22757391,84811.0,84810.0,0.2680318]
[1744908726515,0.58837391,84811.0,84810.0,0.1501]
[1744908726716,0.22757391,84811.0,84810.0,0.1501]
[1744908727227,0.22757391,84811.0,84810.0,0.2680318]
[1744908727422,0.09230871,84811.0,84810.0,0.2680318]
[1744908727623,0.21023911,84811.0,84810.0,0.2680318]
[1744908731424,0.12673911,84811.0,84810.0,0.2680318]
[1744908732724,0.20373911,84811.0,84810.0,0.2680318]
[1744908733625,0.20373911,84811.0,84810.0,0.1501]
[1744908734332,0.21373911,84811.0,84810.0,0.2680318]
[1744908737235,0.20373911,84811.0,84810.0,0.2680318]
[1744908738632,0.27963911,84811.0,84810.0,0.2680318]
[1744908739335,0.27963911,84811.0,84810.0,0.1501]
[1744908739527,0.28963911,84811.0,84810.0,0.1501]
[1744908739728,0.23067441,84811.0,84797.0,0.0050709]
[1744908739935,0.4787443,84801.0,84800.0,0.10019683]
[1744908740129,0.5842643,84801.0,84800.0,0.1]
[1744908740330,0.7340643,84801.0,84800.0,0.10008]
[1744908741125,0.74594623,84801.0,84800.0,0.10008]
[1744908741729,0.38514623,84801.0,84800.0,0.10008]
[1744908743527,0.3732643,84801.0,84800.0,0.10008]
[1744908743837,0.01,84801.0,84800.0,0.5788257]
[1744908744042,0.00017685,84814.0,84813.0,0.1179276]
[1744908744341,0.11810305,84814.0,84813.0,0.1179276]
[1744908744532,0.11810305,84814.0,84813.0,0.2747276]
[1744908744936,0.00017685,84814.0,84813.0,0.2747276]
[1744908745534,0.1179127,84824.0,84823.0,0.1179123]
[1744908746040,0.09552,84833.0,84832.0,0.1768454]
[1744908746239,0.0589492,84835.0,84834.0,0.1178984]
[1744908746431,0.1178946,84839.0,84838.0,0.0589457]
[1744908746834,0.1178943,84837.0,84836.0,0.0589472]
[1744908747435,0.1178896,84841.0,84838.0,0.0589462]
[1744908747640,0.186834,84841.0,84840.0,0.1178887]
[1744908747940,0.01,84841.0,84840.0,0.1178887]
[1744908748132,0.1178887,84841.0,84840.0,0.1768331]
[1744908748533,0.00017685,84843.0,84842.0,0.1178873]
[1744908749138,0.1178738,84852.0,84851.0,0.0589368]
[1744908749344,0.1278738,84852.0,84851.0,0.0589368]
[1744908749543,0.1178738,84852.0,84851.0,0.0589368]
[1744908750740,0.0274,84854.0,84853.0,0.117872]
[1744908750940,0.1452706,84854.0,84853.0,0.117872]
[1744908751141,0.0274,84854.0,84853.0,0.117872]
[1744908751538,0.00025685,84860.0,84859.0,0.1178637]
[1744908751734,0.00017685,84860.0,84859.0,0.1178637]
[1744908751939,0.00025685,84860.0,84859.0,0.1178637]
[1744908752142,0.00017685,84860.0,84859.0,0.1178637]
[1744908752333,0.00025685,84860.0,84859.0,0.1178637]
[1744908752738,0.00017685,84860.0,84859.0,0.1178637]
[1744908753047,0.00010801,84865.0,84864.0,0.1178568]
[1744908753348,0.1178476,84871.0,84865.0,0.0589274]
[1744908753540,0.1178476,84871.0,84870.0,0.1178484]
[1744908754040,0.1981476,84871.0,84870.0,0.1178484]
[1744908755746,0.0803,84871.0,84870.0,0.1178484]
[1744908757144,0.198147,84871.0,84870.0,0.1178484]
[1744908758151,0.198147,84871.0,84870.0,0.1999484]
[1744908758852,0.0803,84871.0,84870.0,0.1999484]
[1744908759245,0.198147,84871.0,84870.0,0.1999484]
[1744908760148,0.0803,84871.0,84870.0,0.1999484]
[1744908761055,0.198147,84871.0,84870.0,0.1999484]
[1744908762754,0.198147,84871.0,84870.0,0.2818484]
[1744908764148,0.0803,84871.0,84870.0,0.2818484]
[1744908765355,0.198147,84871.0,84870.0,0.2818484]
[1744908767051,0.08221498,84871.0,84870.0,0.2818484]
[1744908767245,0.00191498,84871.0,84870.0,0.2818484]
[1744908767643,0.1178388,84877.0,84876.0,0.1767601]
[1744908767843,0.1278388,84877.0,84876.0,0.1767601]
[1744908768043,0.1178388,84877.0,84876.0,0.3333601]
[1744908768441,0.2021388,84877.0,84876.0,0.3333601]
[1744908771650,0.2812388,84877.0,84876.0,0.3333601]
[1744908773656,0.2812388,84877.0,84876.0,0.05892]
[1744908775354,0.2912388,84877.0,84876.0,0.05892]
[1744908776352,0.1767637,84875.0,84874.0,0.1178424]
[1744908776658,0.1767637,84875.0,84863.0,0.176784]
[1744908776659,0.1178581,84864.0,84863.0,0.176784]
[1744908777156,0.2773581,84864.0,84863.0,0.176784]
[1744908778172,0.1178581,84863.0,84862.0,0.47883594]
[1744908778554,0.2773581,84863.0,84862.0,0.47883594]
[1744908783960,0.2773581,84863.0,84862.0,0.11803594]
[1744908784161,0.2873581,84863.0,84862.0,0.11803594]
[1744908784971,0.2873581,84863.0,84862.0,0.11811594]
[1744908786473,0.2873581,84863.0,84862.0,0.00025674]
[1744908786670,0.2873581,84863.0,84862.0,0.00017674]
[1744908786972,0.2873581,84863.0,84862.0,0.00025674]
[1744908791068,0.2873581,84863.0,84862.0,0.11811624]
[1744908791367,0.1695,84863.0,84862.0,0.00025674]
[1744908791570,0.2873581,84863.0,84862.0,0.11811624]
[1744908791771,0.2873581,84863.0,84862.0,0.27641624]
[1744908792070,0.1695,84863.0,84862.0,0.27641624]
[1744908792370,0.081,84863.0,84862.0,0.27641624]
[1744908792759,0.0952,84868.0,84867.0,0.1178526]
[1744908793159,0.2130512,84868.0,84867.0,0.2761526]
[1744908793567,0.2972512,84868.0,84867.0,0.2761526]
[1744908796365,0.1794,84868.0,84867.0,0.6369526]
[1744908796674,0.2020512,84868.0,84867.0,0.6369526]
[1744908799777,0.2020512,84868.0,84862.0,0.00025674]
[1744908799778,0.1178581,84863.0,84862.0,0.17696504]
[1744908800165,0.2719581,84863.0,84862.0,0.17696504]
[1744908800572,0.2719581,84863.0,84862.0,0.17704504]
[1744908801473,0.077,84863.0,84862.0,0.17704504]
[1744908801663,0.077,84863.0,84862.0,0.33314504]
[1744908804473,0.0589253,84869.0,84868.0,0.1178512]
[1744908804866,0.0589253,84869.0,84868.0,0.1940512]
[1744908805066,0.0589241,84871.0,84870.0,0.1178484]
[1744908805266,8e-05,84872.0,84871.0,0.117847]
[1744908805662,0.1178456,84872.0,84871.0,0.1767704]
[1744908805868,0.081,84873.0,84872.0,0.1178456]
[1744908806070,0.091,84873.0,84872.0,0.2756456]
[1744908806473,0.2089243,84873.0,84872.0,0.2756456]
[1744908806777,0.2088443,84873.0,84872.0,0.2756456]
[1744908807073,0.2089243,84873.0,84872.0,0.2756456]
[1744908807574,0.09108,84873.0,84872.0,0.2756456]
[1744908809076,8e-05,84873.0,84872.0,0.2756456]
[1744908809268,0.0809,84877.0,84876.0,0.1178401]
[1744908809471,0.0909,84877.0,84876.0,0.1178401]
[1744908809779,0.0909,84877.0,84876.0,0.2761401]
[1744908810665,0.2087387,84877.0,84876.0,0.2761401]
[1744908812281,0.0909,84877.0,84876.0,0.2761401]
[1744908812968,0.2087387,84877.0,84876.0,0.2761401]
[1744908813169,0.0909,84877.0,84876.0,0.2761401]
[1744908813377,0.00510801,84878.0,84877.0,0.1178387]
[1744908813574,0.08420801,84878.0,84877.0,0.1178387]
[1744908813775,0.0841,84878.0,84877.0,0.2778387]
[1744908813971,0.08418,84878.0,84877.0,0.2778387]
[1744908816285,0.00010801,84884.0,84883.0,0.1178304]
[1744908816584,0.01010801,84884.0,84883.0,0.3532304]
[1744908816781,0.01,84884.0,84883.0,0.3532304]
[1744908816977,8e-05,84884.0,84883.0,0.3532304]
[1744908818283,0.117909,84884.0,84883.0,0.2754304]
[1744908818483,0.117909,84884.0,84883.0,0.1178304]
[1744908818680,0.281209,84884.0,84883.0,0.1178304]
[1744908818979,0.291209,84884.0,84883.0,0.1178304]
[1744908826398,0.16338,84884.0,84883.0,0.1178304]
[1744908826598,0.1633,84884.0,84883.0,0.2767304]
[1744908826909,0.281209,84884.0,84883.0,0.2767304]
[1744908829297,0.291209,84884.0,84883.0,0.2767304]
[1744908829704,0.00014581,84890.0,84886.0,0.058913]
[1744908829899,0.01014581,84890.0,84889.0,0.478622]
[1744908830200,0.01,84890.0,84889.0,0.709222]
[1744908830401,0.01008,84890.0,84889.0,0.634222]
[1744908830701,0.08518,84890.0,84889.0,0.634222]
[1744908831095,0.2030007,84890.0,84889.0,0.273422]
[1744908831295,0.2801007,84890.0,84889.0,0.117822]
[1744908839211,0.2801007,84890.0,84889.0,0.199022]
[1744908839399,0.16228,84890.0,84889.0,0.279122]
[1744908839598,0.08718,84890.0,84889.0,0.279122]
[1744908840396,0.08718,84890.0,84889.0,0.639922]
[1744908840596,0.00017674,84892.0,84891.0,0.1178193]
[1744908840810,0.01017674,84892.0,84891.0,0.2682193]
[1744908842212,0.00017674,84892.0,84891.0,0.2682193]
[1744908846106,0.00017674,84892.0,84891.0,0.6290193]
[1744908851911,0.0589045,84899.0,84891.0,0.6290193]
[1744908851912,0.00019684,84902.0,84894.0,0.0589075]
[1744908852206,0.0823,84903.0,84900.0,0.0589033]
[1744908852411,0.0823,84903.0,84902.0,0.117804]
[1744908852613,0.005,84904.0,84903.0,0.1178026]
[1744908852807,0.015,84904.0,84903.0,0.2783026]
[1744908853316,0.01508,84904.0,84903.0,0.2783026]
[1744908854804,0.00508,84904.0,84903.0,0.2783026]
[1744908856720,0.005,84904.0,84903.0,0.2783026]
[1744908856920,0.00508,84904.0,84903.0,0.2783026]
[1744908864127,0.08138,84904.0,84903.0,0.2783026]
[1744908868231,0.1991812,84904.0,84903.0,0.2783026]
[1744908868528,0.08138,84904.0,84903.0,0.2783026]
[1744908870818,0.05900391,84911.0,84910.0,0.1177929]
[1744908871021,0.11789951,84911.0,84910.0,0.2773929]
[1744908871221,0.0827,84911.0,84910.0,0.2773929]
[1744908871432,0.08278,84911.0,84910.0,0.2773929]
[1744908872230,0.2005715,84911.0,84910.0,0.2773929]
[1744908872432,0.08278,84911.0,84910.0,0.1989929]
[1744908873132,0.08278,84911.0,84910.0,0.2773929]
[1744908873532,0.08278,84911.0,84910.0,0.1989929]
[1744908874023,0.16608,84911.0,84910.0,0.1989929]
[1744908874937,0.17608,84911.0,84910.0,0.1989929]
[1744908877225,0.2938715,84911.0,84910.0,0.1989929]
[1744908878533,0.17608,84911.0,84910.0,0.1989929]
[1744908878730,0.2938715,84911.0,84910.0,0.1989929]
[1744908879436,0.17608,84911.0,84910.0,0.1989929]
[1744908879933,0.17608,84911.0,84910.0,0.2777929]
[1744908880721,0.2938715,84911.0,84910.0,0.2777929]
[1744908881733,0.17608,84911.0,84910.0,0.2777929]
[1744908881922,0.2838715,84911.0,84910.0,0.2777929]
[1744908882330,0.16608,84911.0,84910.0,0.2777929]
[1744908882628,0.166,84911.0,84910.0,0.2777929]
[1744908882824,0.16608,84911.0,84910.0,0.2777929]
[1744908883019,0.08338,84911.0,84910.0,0.2777929]
[1744908883225,0.1177759,84923.0,84922.0,0.176663]
[1744908883432,0.2173759,84923.0,84922.0,0.176663]
[1744908883833,0.2174559,84923.0,84922.0,0.176663]
[1744908884438,0.2976559,84923.0,84922.0,0.176663]
[1744908886442,0.3795559,84923.0,84922.0,0.176663]
[1744908889634,0.1177776,84921.0,84920.0,0.0588891]
[1744908889839,0.1177818,84918.0,84917.0,0.2355597]
[1744908890137,0.1591,84920.0,84919.0,0.1177804]
[1744908890335,0.286879,84920.0,84919.0,0.1177804]
[1744908890835,0.1691,84920.0,84900.0,0.54032272]
[1744908891043,0.1766987,84908.0,84907.0,0.058898]
[1744908891224,0.0588961,84911.0,84910.0,0.1177929]
[1744908891838,0.1985893,84913.0,84912.0,0.1177901]
[1744908892028,0.2085893,84913.0,84912.0,0.1177901]
[1744908895840,0.2086693,84913.0,84912.0,0.1177901]
[1744908896041,0.1986693,84913.0,84912.0,0.1177901]
[1744908896639,0.46484,84913.0,84891.0,0.3608]
[1744908896847,0.1178026,84903.0,84901.0,0.117805]
[1744908897047,0.1278026,84903.0,84901.0,0.117805]
[1744908897432,0.1278026,84903.0,84900.0,0.1178058]
[1744908897738,0.1278026,84903.0,84900.0,0.0589033]
[1744908898125,0.1278026,84903.0,84901.0,0.0762]
[1744908898738,0.1278026,84903.0,84902.0,0.11798074]
[1744908900632,0.01,84903.0,84902.0,0.11798074]
[1744908900942,0.1767028,84907.0,84906.0,0.1766902]
[1744908901237,0.1867028,84907.0,84906.0,0.1766902]
[1744908901430,0.1867828,84907.0,84906.0,0.1766902]
[1744908902546,0.1867828,84907.0,84906.0,0.0588973]
[1744908902744,0.2642828,84907.0,84906.0,0.0588973]
[1744908903539,0.1464802,84907.0,84906.0,0.0588973]
[1744908904148,0.1464802,84907.0,84906.0,0.1398973]
[1744908904534,0.1364802,84907.0,84906.0,0.1398973]
[1744908904946,0.1364802,84907.0,84906.0,0.081]
[1744908905147,0.1464802,84907.0,84906.0,0.081]
[1744908906035,0.1464802,84907.0,84906.0,0.1987985]
[1744908908436,0.2264802,84907.0,84906.0,0.1987985]
[1744908908638,0.2264802,84907.0,84906.0,0.081]
[1744908911047,0.1464802,84907.0,84906.0,0.1987985]
[1744908911239,0.2273802,84907.0,84906.0,0.1987985]
[1744908913350,0.2273802,84907.0,84906.0,0.081]
[1744908914053,0.2273802,84907.0,84906.0,0.1987985]
[1744908914840,0.2273802,84907.0,84906.0,0.2758985]
[1744908916044,0.1464802,84907.0,84906.0,0.2758985]
[1744908916649,0.1277971,84907.0,84906.0,0.2758985]
[1744908916954,0.01008,84907.0,84906.0,0.2758985]
[1744908917143,0.1278771,84907.0,84906.0,0.2758985]
[1744908917448,0.01008,84907.0,84906.0,0.2758985]
[1744908917749,0.00037374,84927.0,84910.0,0.1177929]
[1744908917750,0.1177877,84914.0,84910.0,0.1177929]
[1744908917950,0.00010801,84914.0,84910.0,0.1177929]
[1744908918150,0.00010801,84914.0,84910.0,0.2775929]
[1744908918737,0.3608,84915.0,84910.0,0.2775929]
[1744908918945,0.4785863,84915.0,84910.0,0.2775929]
[1744908919248,0.2343,84924.0,84910.0,0.1598]
[1744908919452,0.1966639,84924.0,84923.0,0.1766616]
[1744908919645,0.1966639,84924.0,84923.0,0.1177734]
[1744908919841,0.1967439,84924.0,84923.0,0.1177734]
[1744908920442,0.3505439,84924.0,84923.0,0.1177734]
[1744908921749,0.02008,84924.0,84923.0,0.1177734]
[1744908922145,0.005,84930.0,84929.0,0.1177666]
[1744908922351,0.05510801,84930.0,84929.0,0.1177666]
[1744908922551,0.05510801,84930.0,84929.0,0.1923666]
[1744908922745,0.05510801,84930.0,84929.0,0.2702666]
[1744908923054,0.22944581,84935.0,84934.0,0.1177596]
[1744908923055,0.00014581,84935.0,84934.0,0.1177596]
[1744908923255,0.1477586,84935.0,84934.0,0.1177596]
[1744908923554,0.1478386,84935.0,84934.0,0.2733596]
[1744908924859,0.03008,84935.0,84934.0,0.2733596]
[1744908925854,0.03,84935.0,84934.0,0.2733596]
[1744908926065,8e-05,84935.0,84934.0,0.2733596]
[1744908926363,0.367323,84946.0,84945.0,0.1177444]
[1744908926550,0.281423,84946.0,84945.0,0.1177444]
[1744908926748,0.281423,84946.0,84945.0,0.2781444]
[1744908927748,0.07,84946.0,84945.0,0.2781444]
[1744908927960,0.187743,84946.0,84945.0,0.2781444]
[1744908928679,0.342843,84946.0,84945.0,0.2781444]
[1744908930859,0.2251,84946.0,84945.0,0.2781444]
[1744908933261,0.342843,84946.0,84945.0,0.2781444]
[1744908934456,0.342843,84946.0,84945.0,0.1966444]
[1744908936257,0.2251,84946.0,84945.0,0.1966444]
[1744908936559,0.342843,84946.0,84945.0,0.2728444]
[1744908936958,0.07,84946.0,84945.0,0.2728444]
[1744908937353,0.07,84946.0,84945.0,0.3493444]
[1744908938162,0.07008,84946.0,84945.0,0.3493444]
[1744908938367,0.022,84947.0,84946.0,0.117743]
[1744908938564,0.022,84947.0,84946.0,0.267443]
[1744908938864,0.005,84956.0,84946.0,0.1497]
[1744908939057,8e-05,84947.0,84946.0,0.51998892]
[1744908939259,0.00010801,84954.0,84953.0,0.1177333]
[1744908939458,0.01010801,84954.0,84953.0,0.1177333]
[1744908939759,0.01,84954.0,84953.0,0.2674333]
[1744908939961,0.01008,84954.0,84953.0,0.2674333]
[1744908940271,0.01,84954.0,84953.0,0.2674333]
[1744908940465,0.01008,84954.0,84953.0,0.2674333]
[1744908941264,0.1227295,84956.0,84955.0,0.1177305]
[1744908941661,0.1227295,84956.0,84955.0,0.1938305]
[1744908942171,0.2850295,84956.0,84955.0,0.1938305]
[1744908943966,0.2850295,84956.0,84955.0,0.2745305]
[1744908946269,0.2037295,84956.0,84955.0,0.2745305]
[1744908947666,0.2755295,84956.0,84955.0,0.2745305]
[1744908948262,0.2755295,84956.0,84955.0,0.1938305]
[1744908950672,0.2755295,84956.0,84955.0,0.2637305]
[1744908953172,0.2755295,84956.0,84955.0,0.1938305]
[1744908953572,0.2855295,84956.0,84955.0,0.1938305]
[1744908954372,0.2855295,84956.0,84955.0,0.2685305]
[1744908954575,0.1327295,84956.0,84955.0,0.2685305]
[1744908955074,0.015,84956.0,84955.0,0.3432305]
[1744908955572,0.01508,84956.0,84955.0,0.3432305]
[1744908955970,0.1328091,84956.0,84955.0,0.2685305]
[1744908956372,0.2721091,84956.0,84955.0,0.2685305]
[1744908957870,0.2721091,84956.0,84955.0,0.1938305]
[1744908958075,0.6329091,84956.0,84955.0,0.0761]
[1744908958267,0.6429091,84956.0,84955.0,0.0761]
[1744908958961,0.1765993,84955.0,84954.0,0.0588659]
[1744908959167,0.1177361,84951.0,84950.0,0.2354694]
[1744908959573,0.2631361,84951.0,84950.0,0.2354694]
[1744908961971,0.1454,84951.0,84950.0,0.2354694]
[1744908962176,0.2631361,84951.0,84950.0,0.2354694]
[1744908962377,0.2631361,84951.0,84950.0,0.3075694]
[1744908963185,0.005,84956.0,84952.0,0.0588673]
[1744908963369,0.0588581,84966.0,84960.0,0.1177236]
[1744908963677,0.1177195,84963.0,84962.0,0.1177208]
[1744908964069,0.1177195,84963.0,84962.0,0.1898208]
[1744908964269,0.1177995,84963.0,84962.0,0.1898208]
[1744908964469,0.1177994,84963.0,84962.0,0.1898208]
[1744908966080,0.1896994,84963.0,84962.0,0.1898208]
[1744908967677,0.1177994,84963.0,84962.0,0.1898208]
[1744908967977,0.00010801,84967.0,84966.0,0.1177153]
[1744908968170,0.1177139,84967.0,84966.0,0.5531153]
[1744908968371,0.1177939,84967.0,84966.0,0.5531153]
[1744908968777,0.2653939,84967.0,84966.0,0.5531153]
[1744908968979,0.2653939,84967.0,84966.0,0.4785153]
[1744908970075,8e-05,84967.0,84966.0,0.4785153]
[1744908970282,8e-05,84967.0,84966.0,0.5531153]
[1744908971182,0.0742,84973.0,84972.0,0.117707]
[1744908971479,0.2219056,84973.0,84972.0,0.117707]
[1744908971783,0.2998056,84973.0,84972.0,0.117707]
[1744908971975,0.2998056,84973.0,84972.0,0.187807]
[1744908972372,0.1821,84973.0,84972.0,0.187807]
[1744908972581,0.1042,84973.0,84972.0,0.187807]
[1744908972779,0.03,84973.0,84972.0,0.187807]
[1744908972974,0.00014581,84975.0,84974.0,0.1177042]
[1744908973175,0.01014581,84975.0,84974.0,0.1177042]
[1744908973381,0.01,84975.0,84974.0,0.1878042]
[1744908974274,0.01008,84975.0,84974.0,0.1878042]
[1744908975380,0.1277828,84975.0,84974.0,0.1878042]
[1744908976290,0.01008,84975.0,84974.0,0.1878042]
[1744908976480,8e-05,84975.0,84974.0,0.1878042]
[1744908976785,0.1176966,84980.0,84979.0,0.2353903]
[1744908977095,0.00010801,84980.0,84979.0,0.2353903]
[1744908977782,0.1226938,84982.0,84981.0,0.1176945]
[1744908978499,0.1226938,84982.0,84981.0,0.2628945]
[1744908978992,0.00014581,84986.0,84981.0,0.1452]
[1744908979292,0.022,84988.0,84987.0,0.1176862]
[1744908980086,0.1396848,84988.0,84987.0,0.1176862]
[1744908980287,0.1396848,84988.0,84987.0,0.2620862]
[1744908982191,0.022,84988.0,84987.0,0.2620862]
[1744908986698,0.0964,84988.0,84987.0,0.2620862]
[1744908988384,0.00010801,84992.0,84991.0,0.1176806]
[1744908988789,0.17968435,84993.0,84992.0,0.1176793]